Workbook

Sheet data_stromu_na_KZP
A1: plocha | B1: strom | C1: dřevina | D1: azimut [°] | E1: vzdálenost od středu KZP [m] | F1: d1.3_2024 (cm) | G1: h2024 (m) | H1: d1.3_2034 (cm) | I1: h2034 (m) | J1: status stromu | K1: n2024 | L1: n2034 | M1: V/ha2024 (m3/ha) | N1: V/ha2034 (m3/ha) | O1: T (m3/ha)
A2: 21 | B2: 17 | C2: HB | D2: 54.21 | E2: 2.43 | H2: 7.4 | I2: 8.1
A3: 21 | B3: 9 | C3: HB | D3: 47.08 | E3: 2.19 | H3: 7.9 | I3: 6.24
A4: 21 | B4: 16 | C4: HB | D4: 5.12 | E4: 5.24 | H4: 12.8 | I4: 9.6
A5: 21 | B5: 8 | C5: DB | D5: 27.6 | E5: 8.45 | H5: 31.1 | I5: 22.4
A6: 21 | B6: 7 | C6: DB | D6: 53.43 | E6: 4.34 | F6: 14.5 | G6: 13.7 | H6: 17 | I6: 14.6
A7: 21 | B7: 13 | C7: DB | D7: 2.59 | E7: 5.83 | F7: 15.9 | G7: 16.1 | H7: 17.3 | I7: 19.9
A8: 21 | B8: 4 | C8: DB | D8: 126.73 | E8: 1.39 | F8: 17 | G8: 14.6 | H8: 18 | I8: 14.9
A9: 21 | B9: 9 | C9: DB | D9: 40.33 | E9: 5.68 | F9: 17.3 | G9: 23.4 | H9: 18.2 | I9: 26.5
A10: 21 | B10: 11 | C10: DB | D10: 17,,02 | E10: 6.13 | F10: 17.6 | G10: 15.2 | H10: 20.9 | I10: 15.8
A11: 21 | B11: 6 | C11: DB | D11: 76.87 | E11: 5.04 | F11: 16.8 | G11: 14.9 | H11: 21.1 | I11: 15.8
A12: 21 | B12: 12 | C12: DB | D12: 12.51 | E12: 5.74 | F12: 16.6 | G12: 13.1 | H12: 23.1 | I12: 17.4
A13: 21 | B13: 14 | C13: DB | D13: 345.65 | E13: 6.21 | F13: 19.2 | G13: 18.8 | H13: 23.1 | I13: 19
A14: 21 | B14: 5 | C14: DB | D14: 90.31 | E14: 5.7 | F14: 19.6 | G14: 15.2 | H14: 23.9 | I14: 16.4
A15: 21 | B15: 3 | C15: DB | D15: 108.75 | E15: 3.31 | F15: 20.5 | G15: 16.8 | H15: 27.9 | I15: 18.5
A16: 21 | B16: 2 | C16: DB | D16: 98.84 | E16: 3.1 | F16: 25.3 | G16: 19.5 | H16: 30.4 | I16: 21.9
A17: 21 | B17: 8 | C17: DB | D17: 107.81 | E17: 10.49 | F17: 31.9 | G17: 19.6 | H17: 38.8 | I17: 22.5
A18: 21 | B18: 1 | C18: DB | D18: 330.96 | E18: 3.18 | F18: 37.4 | G18: 18.7 | H18: 43 | I18: 19.5
A19: 21 | B19: 15 | C19: DB | D19: 277.54 | E19: 5.08 | F19: 38.9 | G19: 13.4
A20: 21 | B20: 10 | C20: BO | D20: 24.44 | E20: 10.41 | F20: 39.5 | G20: 16.6
A21: 22 | B21: 2 | C21: HB | D21: 260.04 | E21: 5.96 | F21: 16.6 | G21: 15.5 | H21: 21 | I21: 17.6
A22: 22 | B22: 7 | C22: HB | D22: 153.62 | E22: 6.45 | F22: 25.2 | G22: 16.6 | H22: 28.5 | I22: 20.6
A23: 22 | B23: 5 | C23: DB | D23: 130.46 | E23: 6.14 | F23: 28.7 | G23: 16.5 | H23: 35.6 | I23: 19.4
A24: 22 | B24: 3 | C24: DB | D24: 368.71 | E24: 1.68 | F24: 36.6 | G24: 18.2 | H24: 39.9 | I24: 20.9
A25: 22 | B25: 6 | C25: DB | D25: 95.71 | E25: 9.41 | F25: 41.5 | G25: 20.2
A26: 22 | B26: 4 | C26: DB | D26: 322.1 | E26: 8.73 | F26: 47.3 | G26: 21
A27: 22 | B27: 1 | C27: DB | D27: 193.01 | E27: 9.88 | F27: 65.7 | G27: 23.2
A28: 23 | B28: 8 | C28: DG | D28: 124.7 | E28: 9.36 | H28: 32.1 | I28: 29.6
A29: 23 | B29: 1 | C29: HB | D29: 265.87 | E29: 0.71 | F29: 10.2 | G29: 15.2 | H29: 11.9 | I29: 20.2
A30: 23 | B30: 3 | C30: HB | D30: 266.44 | E30: 1.41 | F30: 11 | G30: 15.9 | H30: 13.1 | I30: 20.5
A31: 23 | B31: 5 | C31: HB | D31: 2055 | E31: 2.22 | F31: 15.6 | G31: 19.8 | H31: 16.9 | I31: 22.1
A32: 23 | B32: 4 | C32: DB | D32: 280.91 | E32: 4.52 | F32: 26.2 | G32: 20.1 | H32: 26.9 | I32: 21
A33: 23 | B33: 6 | C33: DB | D33: 117.13 | E33: 4.52 | F33: 32.6 | G33: 17.3 | H33: 35.5 | I33: 19.5
A34: 23 | B34: 2 | C34: DB | D34: 213.54 | E34: 2.34 | F34: 38.1 | G34: 20.6 | H34: 44.7 | I34: 23.2
A35: 23 | B35: 7 | C35: DG | D35: 9.99 | E35: 9.45 | F35: 61.9 | G35: 31.5
A36: 31 | B36: 10 | C36: HB | D36: 200.67 | E36: 1.98 | F36: 13.7 | G36: 14.2 | H36: 14.2 | I36: 16
A37: 31 | B37: 9 | C37: HB | D37: 188.52 | E37: 5.9 | F37: 13.5 | G37: 13.6 | H37: 15.8 | I37: 14
A38: 31 | B38: 4 | C38: HB | D38: 47.84 | E38: 6.59 | F38: 14.7 | G38: 13.8 | H38: 16 | I38: 16.9
A39: 31 | B39: 5 | C39: HB | D39: 66.41 | E39: 4.23 | F39: 14.1 | G39: 12.5 | H39: 16.8 | I39: 18.2
A40: 31 | B40: 8 | C40: HB | D40: 161.83 | E40: 1.67 | F40: 10.7 | G40: 11.5 | H40: 18.6 | I40: 15
A41: 31 | B41: 6 | C41: HB | D41: 74.08 | E41: 4.32 | F41: 18.1 | G41: 13 | H41: 21.5 | I41: 13.5
A42: 31 | B42: 1 | C42: HB | D42: 323.03 | E42: 1.47 | F42: 16.2 | G42: 16 | H42: 23.7 | I42: 19.1
A43: 31 | B43: 3 | C43: DB | D43: 341.23 | E43: 7.3 | F43: 36.9 | G43: 20.2 | H43: 42.2 | I43: 22.3
A44: 31 | B44: 7 | C44: HB | D44: 158.88 | E44: 6.92 | F44: 43.2 | G44: 20.3 | H44: 45.7 | I44: 22.3
A45: 31 | B45: 2 | C45: DB | D45: 315.4 | E45: 5.8 | F45: 42.5 | G45: 18.2
A46: 32 | B46: 7 | C46: HB | D46: 187.11 | E46: 1.21 | H46: 7.8 | I46: 5.2
A47: 32 | B47: 8 | C47: DB | D47: 211.24 | E47: 8.78 | H47: 31.6 | I47: 24.6
A48: 32 | B48: 3 | C48: DB | D48: 357.84 | E48: 3.95 | F48: 19.3 | G48: 15 | H48: 23.6 | I48: 17.3
A49: 32 | B49: 6 | C49: DB | D49: 83.64 | E49: 4.19 | F49: 24.1 | G49: 15 | H49: 24.9 | I49: 16.3
A50: 32 | B50: 5 | C50: DB | D50: 53.85 | E50: 4.32 | F50: 24.9 | G50: 14.8 | H50: 31.3 | I50: 16.6
A51: 32 | B51: 2 | C51: DB | D51: 320 | E51: 5.28 | F51: 24.8 | G51: 16.8 | H51: 31.8 | I51: 19.5
A52: 32 | B52: 1 | C52: DB | D52: 202.11 | E52: 4.35 | F52: 51.9 | G52: 20.2 | H52: 58.4 | I52: 22
A53: 32 | B53: 4 | C53: DB | D53: 8.22 | E53: 9.74 | F53: 46.2 | G53: 17.8
A54: 33 | B54: 7 | C54: DB | D54: 218.73 | E54: 6.23 | F54: 14.9 | G54: 10.6 | H54: 16.9 | I54: 15.6
A55: 33 | B55: 1 | C55: DB | D55: 114.25 | E55: 2.55 | F55: 17.1 | G55: 11 | H55: 18.1 | I55: 13.3
A56: 33 | B56: 12 | C56: DB | D56: 287.03 | E56: 5.85 | F56: 17.8 | G56: 11 | H56: 18.6 | I56: 15.1
A57: 33 | B57: 5 | C57: DB | D57: 199.65 | E57: 6.62 | F57: 14.9 | G57: 6.2 | H57: 19.5 | I57: 8.9
A58: 33 | B58: 6 | C58: DB | D58: 212.47 | E58: 6.1 | F58: 13.8 | G58: 9.6 | H58: 19.8 | I58: 14.6
A59: 33 | B59: 17 | C59: DB | D59: 97.94 | E59: 5 | F59: 16.3 | G59: 15.6 | H59: 20.2 | I59: 18
A60: 33 | B60: 16 | C60: DB | D60: 88.21 | E60: 4.95 | F60: 14.9 | G60: 13 | H60: 20.6 | I60: 16.5
A61: 33 | B61: 2 | C61: DB | D61: 124.3 | E61: 2.56 | F61: 19.6 | G61: 11.4 | H61: 21.4 | I61: 13.7
A62: 33 | B62: 14 | C62: DB | D62: 53.2 | E62: 4.14 | F62: 21.1 | G62: 13.2 | H62: 23.8 | I62: 13.8
A63: 33 | B63: 15 | C63: DB | D63: 54.61 | E63: 5.15 | F63: 20.9 | G63: 15.4 | H63: 24.1 | I63: 19.2
A64: 33 | B64: 4 | C64: DB | D64: 202.04 | E64: 4.72 | F64: 21.4 | G64: 12.4 | H64: 24.7 | I64: 13
A65: 33 | B65: 3 | C65: DB | D65: 192.68 | E65: 1.74 | F65: 19.6 | G65: 13.6 | H65: 25.3 | I65: 15.3
A66: 33 | B66: 11 | C66: DB | D66: 282.98 | E66: 4.44 | F66: 19.1 | G66: 11.4 | H66: 26.4 | I66: 15.8
A67: 33 | B67: 10 | C67: DB | D67: 273.66 | E67: 6.65 | F67: 21.6 | G67: 12.2 | H67: 29.2 | I67: 15.8
A68: 33 | B68: 9 | C68: DB | D68: 251.87 | E68: 3.12 | F68: 24.6 | G68: 14.4 | H68: 29.5 | I68: 17.9
A69: 33 | B69: 18 | C69: DB | D69: 96.91 | E69: 6.51 | F69: 24.7 | G69: 15.4 | H69: 29.6 | I69: 18.8
A70: 33 | B70: 13 | C70: DB | D70: 0.22 | E70: 2.15 | F70: 26.9 | G70: 13.3 | H70: 30.1 | I70: 13.9
A71: 33 | B71: 8 | C71: DB | D71: 242.01 | E71: 6.37 | F71: 28.2 | G71: 12.2 | H71: 32.8 | I71: 13.7
A72: 34 | B72: 14 | C72: DB | D72: 287.37 | E72: 1.36 | F72: 14.3 | G72: 11.2 | H72: 15.1 | I72: 11.4
A73: 34 | B73: 7 | C73: HB | D73: 146.53 | E73: 6.47 | F73: 12.6 | G73: 10.8 | H73: 15.9 | I73: 13.5
A74: 34 | B74: 13 | C74: DB | D74: 241.39 | E74: 2.28 | F74: 15.9 | G74: 15 | H74: 20.7 | I74: 16.2
A75: 34 | B75: 10 | C75: DB | D75: 204.49 | E75: 2 | F75: 19.2 | G75: 15.4 | H75: 21.8 | I75: 18.4
A76: 34 | B76: 9 | C76: DB | D76: 174.98 | E76: 6.87 | F76: 21.9 | G76: 12.2 | H76: 23.3 | I76: 12.8
A77: 34 | B77: 3 | C77: DB | D77: 30.18 | E77: 4.88 | F77: 16.9 | G77: 12 | H77: 23.7 | I77: 12.8
A78: 34 | B78: 1 | C78: DB | D78: 353.58 | E78: 4.41 | F78: 24.1 | G78: 17 | H78: 26.6 | I78: 19.8
A79: 34 | B79: 11 | C79: DB | D79: 225.38 | E79: 4.59 | F79: 22 | G79: 16.2 | H79: 28.1 | I79: 19.4
A80: 34 | B80: 6 | C80: DB | D80: 109.75 | E80: 5.18 | F80: 27.4 | G80: 17.4 | H80: 28.3 | I80: 19.8
A81: 34 | B81: 5 | C81: DB | D81: 45.06 | E81: 1.74 | F81: 27.9 | G81: 20.2 | H81: 31 | I81: 22.1
A82: 34 | B82: 12 | C82: DB | D82: 230.59 | E82: 7.54 | F82: 30.9 | G82: 19.2 | H82: 35 | I82: 20.4
A83: 34 | B83: 4 | C83: DB | D83: 49.81 | E83: 6.81 | F83: 29.1 | G83: 17.6 | H83: 36.2 | I83: 19.5
A84: 34 | B84: 2 | C84: DB | D84: 2.1 | E84: 8.8 | F84: 39.6 | G84: 16.8
A85: 34 | B85: 15 | C85: DB | D85: 277.09 | E85: 6.88 | F85: 40.9 | G85: 20.3
A86: 41 | B86: 2 | C86: LP | D86: 332.3 | E86: 6.21 | F86: 14.1 | G86: 14.7 | H86: 14.6 | I86: 16.8
A87: 41 | B87: 6 | C87: LP | D87: 17.16 | E87: 1.52 | F87: 13.3 | G87: 13.6 | H87: 15.4 | I87: 16
A88: 41 | B88: 7 | C88: LP | D88: 27.29 | E88: 3.02 | F88: 15.8 | G88: 12.4 | H88: 16.7 | I88: 15.8
A89: 41 | B89: 10 | C89: LP | D89: 101.39 | E89: 4 | F89: 12.7 | G89: 9.4 | H89: 17 | I89: 9.6
A90: 41 | B90: 20 | C90: LP | D90: 286.42 | E90: 3.56 | F90: 12.6 | G90: 10.6 | H90: 19.2 | I90: 13.5
A91: 41 | B91: 17 | C91: LP | D91: 232.5 | E91: 4.19 | F91: 14.2 | G91: 16.8 | H91: 19.8 | I91: 16.9
A92: 41 | B92: 8 | C92: DB | D92: 59.33 | E92: 5.73 | F92: 15.9 | G92: 15.4 | H92: 20.1 | I92: 19.4
A93: 41 | B93: 5 | C93: LP | D93: 3.04 | E93: 5.44 | F93: 18.3 | G93: 16.2 | H93: 20.1 | I93: 21
A94: 41 | B94: 19 | C94: LP | D94: 267.21 | E94: 1.28 | F94: 14.7 | G94: 10.1 | H94: 21.3 | I94: 13.8
A95: 41 | B95: 16 | C95: LP | D95: 201 | E95: 4.91 | F95: 15.7 | G95: 12.8 | H95: 21.7 | I95: 15.1
A96: 41 | B96: 11 | C96: LP | D96: 114 | E96: 5.73 | F96: 16.5 | G96: 9.3 | H96: 22.2 | I96: 12.8
A97: 41 | B97: 3 | C97: DB | D97: 352.1 | E97: 6.81 | F97: 29.4 | G97: 16.2 | H97: 30 | I97: 19.4
A98: 41 | B98: 4 | C98: DB | D98: 354.76 | E98: 3.37 | F98: 24.6 | G98: 13.8 | H98: 31.6 | I98: 14.4
A99: 41 | B99: 18 | C99: DB | D99: 259.26 | E99: 3.26 | F99: 30.2 | G99: 15.4 | H99: 31.8 | I99: 15.7
A100: 41 | B100: 1 | C100: DB | D100: 320.35 | E100: 6.1 | F100: 27.5 | G100: 17.4 | H100: 32.1 | I100: 19.8
A101: 41 | B101: 12 | C101: DB | D101: 135.73 | E101: 6.39 | F101: 26.8 | G101: 14.2 | H101: 32.9 | I101: 14.4
A102: 41 | B102: 9 | C102: DB | D102: 121.8 | E102: 2.32 | F102: 33.7 | G102: 15.6
A103: 42 | B103: 8 | C103: DB | D103: 124.6 | E103: 9.36 | H103: 30.6 | I103: 21.4
A104: 42 | B104: 7 | C104: DB | D104: 11.24 | E104: 11.21 | H104: 31.2 | I104: 22.5
A105: 42 | B105: 4 | C105: DB | D105: 108.55 | E105: 4.93 | F105: 12.5 | G105: 5.3 | H105: 19.1 | I105: 7.7
A106: 42 | B106: 3 | C106: DB | D106: 96.53 | E106: 3.18 | F106: 22.9 | G106: 14 | H106: 27.1 | I106: 14.8
A107: 42 | B107: 2 | C107: DB | D107: 93.45 | E107: 3.77 | F107: 26 | G107: 13.8 | H107: 28.5 | I107: 17
A108: 42 | B108: 5 | C108: DB | D108: 240.35 | E108: 2.01 | F108: 26.5 | G108: 15.8 | H108: 31 | I108: 17.9
A109: 42 | B109: 6 | C109: DB | D109: 334.97 | E109: 5.86 | F109: 31.2 | G109: 15.9
A110: 43 | B110: 4 | C110: HB | D110: 150.27 | E110: 4.88 | F110: 13.7 | G110: 8.8 | H110: 14.5 | I110: 12
A111: 43 | B111: 2 | C111: DB | D111: 45.64 | E111: 2.51 | F111: 14.8 | G111: 10 | H111: 18 | I111: 10.3
A112: 43 | B112: 5 | C112: DB | D112: 160.19 | E112: 3.22 | F112: 20.3 | G112: 12.8 | H112: 24.5 | I112: 16.8
A113: 43 | B113: 6 | C113: DB | D113: 165.44 | E113: 3.22 | F113: 18.4 | G113: 11 | H113: 25.2 | I113: 11.1
A114: 43 | B114: 8 | C114: DB | D114: 317.02 | E114: 5.85 | F114: 20.2 | G114: 10.6 | H114: 25.4 | I114: 13.8
A115: 43 | B115: 9 | C115: DB | D115: 357.22 | E115: 3.6 | F115: 20.7 | G115: 10.6 | H115: 27.5 | I115: 10.7
A116: 43 | B116: 1 | C116: DB | D116: 51.22 | E116: 2.41 | F116: 21.6 | G116: 12.6 | H116: 28.9 | I116: 14.6
A117: 43 | B117: 10 | C117: DB | D117: 20.54 | E117: 6.28 | F117: 24.2 | G117: 15 | H117: 30.1 | I117: 17.7
A118: 43 | B118: 3 | C118: DB | D118: 83.16 | E118: 7.67 | F118: 45.6 | G118: 12.8 | H118: 51.7 | I118: 14.5
A119: 43 | B119: 7 | C119: DB | D119: 269.78 | E119: 2.47 | F119: 45.8 | G119: 12.6
A120: 43 | B120: 11 | C120: DB | D120: 245.77 | E120: 11.18 | F120: 47.3 | G120: 13.4
A121: 44 | B121: 10 | C121: DB | D121: 1.25 | E121: 6.36 | H121: 13.1 | I121: 12.5
A122: 44 | B122: 9 | C122: DB | D122: 245.24 | E122: 9.27 | H122: 30.9 | I122: 22.6
A123: 44 | B123: 3 | C123: HB | D123: 152.04 | E123: 5.33 | F123: 13.2 | G123: 10.4 | H123: 18.9 | I123: 15.4
A124: 44 | B124: 8 | C124: DB | D124: 70.67 | E124: 4.57 | F124: 14.1 | G124: 16.3 | H124: 21.3 | I124: 21
A125: 44 | B125: 2 | C125: HB | D125: 168.28 | E125: 5.43 | F125: 22.7 | G125: 21.6 | H125: 23.3 | I125: 25.8
A126: 44 | B126: 7 | C126: HB | D126: 327.39 | E126: 5.31 | F126: 20.1 | G126: 19.2 | H126: 23.9 | I126: 20.9
A127: 44 | B127: 6 | C127: HB | D127: 275.23 | E127: 6.58 | F127: 22.8 | G127: 19.8 | H127: 29.7 | I127: 22.7
A128: 44 | B128: 1 | C128: BR | D128: 149.15 | E128: 3.4 | F128: 25.9 | G128: 21.4 | H128: 30 | I128: 24.1
A129: 44 | B129: 5 | C129: HB | D129: 244.16 | E129: 6.52 | F129: 35.9 | G129: 21.6 | H129: 37.2 | I129: 22.2
A130: 44 | B130: 4 | C130: HB | D130: 227.88 | E130: 10.79 | F130: 35.8 | G130: 26.4 | H130: 40.9 | I130: 27.7
A131: 51 | B131: 10 | C131: DB | D131: 124.25 | E131: 11.6 | H131: 32.2 | I131: 24.9
A132: 51 | B132: 3 | C132: HB | D132: 137.56 | E132: 2.54 | F132: 9.5 | G132: 8 | H132: 12.7 | I132: 10.1
A133: 51 | B133: 8 | C133: HB | D133: 8.44 | E133: 5.37 | F133: 17.9 | G133: 11.2 | H133: 23.4 | I133: 15.5
A134: 51 | B134: 2 | C134: HB | D134: 135.57 | E134: 2.24 | F134: 16 | G134: 11.6 | H134: 23.5 | I134: 15.6
A135: 51 | B135: 4 | C135: DB | D135: 154.71 | E135: 2.95 | F135: 27.9 | G135: 23.4 | H135: 28.8 | I135: 25.5
A136: 51 | B136: 6 | C136: DB | D136: 211.85 | E136: 5.92 | F136: 27.7 | G136: 17.8 | H136: 30.3 | I136: 20.1
A137: 51 | B137: 9 | C137: DB | D137: 3.91 | E137: 6.71 | F137: 23.4 | G137: 15 | H137: 30.4 | I137: 16.9
A138: 51 | B138: 5 | C138: DB | D138: 174.66 | E138: 7.7 | F138: 32.9 | G138: 20.1 | H138: 33.6 | I138: 21.4
A139: 51 | B139: 7 | C139: DB | D139: 292.32 | E139: 7.2 | F139: 34.5 | G139: 20.1
A140: 52 | B140: 4 | C140: DB | D140: 50.51 | E140: 2.46 | F140: 12.5 | G140: 15 | H140: 13.1 | I140: 18.2
A141: 52 | B141: 11 | C141: HB | D141: 267.5 | E141: 6.04 | F141: 13.3 | G141: 12.2 | H141: 14 | I141: 12.6
A142: 52 | B142: 10 | C142: DB | D142: 225.6 | E142: 6.3 | F142: 14.2 | G142: 15.1 | H142: 17.2 | I142: 15.9
A143: 52 | B143: 8 | C143: HB | D143: 158.5 | E143: 3.65 | F143: 15.6 | G143: 11.6 | H143: 20.9 | I143: 12.2
A144: 52 | B144: 5 | C144: DB | D144: 88.5 | E144: 1.49 | F144: 13.8 | G144: 14 | H144: 21.6 | I144: 14.8
A145: 52 | B145: 9 | C145: DB | D145: 223.2 | E145: 6.39 | F145: 18 | G145: 17.2 | H145: 22.2 | I145: 22.2
A146: 52 | B146: 2 | C146: DB | D146: 24.26 | E146: 4.66 | F146: 30.3 | G146: 20.8 | H146: 33.6 | I146: 22.7
A147: 52 | B147: 7 | C147: DB | D147: 137.2 | E147: 5.41 | F147: 32.9 | G147: 19.2 | H147: 33.7 | I147: 21.5
A148: 52 | B148: 3 | C148: DB | D148: 353.05 | E148: 7.84 | F148: 31.9 | G148: 20.4 | H148: 36.7 | I148: 22.6
A149: 52 | B149: 1 | C149: DB | D149: 276.61 | E149: 3.46 | F149: 47.1 | G149: 22.8
A150: 53 | B150: 14 | C150: HB | D150: 121.25 | E150: 2.24 | H150: 7.9 | I150: 6.2
A151: 53 | B151: 13 | C151: DB | D151: 18.34 | E151: 6.32 | H151: 13.1 | I151: 11.4
A152: 53 | B152: 12 | C152: DG | D152: 324.65 | E152: 9.54 | H152: 33.1 | I152: 24.4
A153: 53 | B153: 8 | C153: HB | D153: 42.11 | E153: 5.32 | F153: 13.9 | G153: 14.2 | H153: 15.8 | I153: 18.2
A154: 53 | B154: 1 | C154: HB | D154: 297.77 | E154: 1.43 | F154: 15.9 | G154: 11.4 | H154: 19.1 | I154: 14.8
A155: 53 | B155: 3 | C155: HB | D155: 9.55 | E155: 6.22 | F155: 14.8 | G155: 14.6 | H155: 20 | I155: 19.9
A156: 53 | B156: 6 | C156: HB | D156: 62.78 | E156: 2.16 | F156: 17.6 | G156: 12.6 | H156: 21 | I156: 17.7
A157: 53 | B157: 7 | C157: HB | D157: 68.3 | E157: 6.09 | F157: 16.2 | G157: 13 | H157: 22.3 | I157: 15.8
A158: 53 | B158: 9 | C158: HB | D158: 122.21 | E158: 4.19 | F158: 18.6 | G158: 13.6 | H158: 23.1 | I158: 18.4
A159: 53 | B159: 2 | C159: HB | D159: 320.01 | E159: 5.26 | F159: 16.8 | G159: 15 | H159: 23.6 | I159: 15.2
A160: 53 | B160: 11 | C160: DB | D160: 285.67 | E160: 11.58 | F160: 41.3 | G160: 21.8
A161: 53 | B161: 10 | C161: DB | D161: 241.4 | E161: 7.9 | F161: 52.6 | G161: 20.5
A162: 54 | B162: 4 | C162: HB | D162: 264.74 | E162: 4.44 | F162: 13.2 | G162: 9.6 | H162: 15 | I162: 13.6
A163: 54 | B163: 3 | C163: HB | D163: 261.67 | E163: 3.86 | F163: 13.5 | G163: 10.4 | H163: 20.7 | I163: 15.2
A164: 54 | B164: 10 | C164: DB | D164: 125.68 | E164: 5.77 | F164: 16.1 | G164: 11.8 | H164: 21.5 | I164: 15.2
A165: 54 | B165: 8 | C165: DB | D165: 165.17 | E165: 5.86 | F165: 24.8 | G165: 13.7 | H165: 28.7 | I165: 16.9
A166: 54 | B166: 9 | C166: DB | D166: 185.31 | E166: 8.42 | F166: 33.9 | G166: 14.2 | H166: 35.6 | I166: 15
A167: 54 | B167: 5 | C167: DB | D167: 255.25 | E167: 7.31 | F167: 38.8 | G167: 21 | H167: 45.2 | I167: 23.6
A168: 54 | B168: 13 | C168: BK | D168: 316.64 | E168: 8.39 | F168: 62.4 | G168: 20.3
A169: 54 | B169: 11 | C169: BK | D169: 58.65 | E169: 6.56 | F169: 78.9 | G169: 24.4
A170: 55 | B170: 7 | C170: DB | D170: 111.65 | E170: 6.21 | H170: 30.3 | I170: 22.7
A171: 55 | B171: 2 | C171: HB | D171: 264.55 | E171: 4.57 | F171: 17.3 | G171: 12.1 | H171: 24.9 | I171: 16.8
A172: 55 | B172: 6 | C172: HB | D172: 184.36 | E172: 5.09 | F172: 17.7 | G172: 14.6 | H172: 25.7 | I172: 15.1
A173: 55 | B173: 3 | C173: HB | D173: 132.64 | E173: 1.76 | F173: 21.5 | G173: 13.6 | H173: 28.3 | I173: 17.1
A174: 55 | B174: 1 | C174: HB | D174: 332.2 | E174: 4.02 | F174: 21.1 | G174: 12.3 | H174: 28.7 | I174: 16.4
A175: 55 | B175: 4 | C175: HB | D175: 73.7 | E175: 4.21 | F175: 23.2 | G175: 14.2 | H175: 29 | I175: 16.1
A176: 55 | B176: 5 | C176: SM | D176: 292.23 | E176: 9.43 | F176: 62.8 | G176: 28.8
A177: 56 | B177: 15 | C177: DB | D177: 214 | E177: 11.45 | H177: 30.6 | I177: 22.7
A178: 56 | B178: 9 | C178: HB | D178: 218.5 | E178: 1.53 | F178: 7.7 | G178: 7.8 | H178: 10.6 | I178: 11.6
A179: 56 | B179: 2 | C179: HB | D179: 11.6 | E179: 2 | F179: 8.2 | G179: 7.5 | H179: 10.7 | I179: 13.4
A180: 56 | B180: 6 | C180: DB | D180: 46.7 | E180: 4.9 | F180: 17.9 | G180: 12 | H180: 18.5 | I180: 13.8
A181: 56 | B181: 13 | C181: DB | D181: 308.4 | E181: 4.3 | F181: 19.2 | G181: 11.8 | H181: 21.2 | I181: 14.5
A182: 56 | B182: 8 | C182: DB | D182: 73.4 | E182: 3.6 | F182: 15.7 | G182: 8.9 | H182: 22.9 | I182: 9.9
A183: 56 | B183: 12 | C183: HB | D183: 265 | E183: 3.65 | F183: 21.3 | G183: 8.7 | H183: 23.2 | I183: 12.3
A184: 56 | B184: 4 | C184: HB | D184: 2.8 | E184: 3.84 | F184: 16 | G184: 12.3 | H184: 23.6 | I184: 13
A185: 56 | B185: 3 | C185: HB | D185: 357.5 | E185: 2.35 | F185: 17.2 | G185: 12.6 | H185: 24.4 | I185: 13.6
A186: 56 | B186: 7 | C186: DB | D186: 32.3 | E186: 6.5 | F186: 21.6 | G186: 11.3 | H186: 24.4 | I186: 13.6
A187: 56 | B187: 1 | C187: HB | D187: 342.9 | E187: 2.83 | F187: 23.2 | G187: 9.8 | H187: 27.8 | I187: 10.3
A188: 56 | B188: 5 | C188: HB | D188: 348 | E188: 4.16 | F188: 26.7 | G188: 14.5 | H188: 29.1 | I188: 17.5
A189: 56 | B189: 10 | C189: DB | D189: 138.6 | E189: 6 | F189: 26.7 | G189: 19.4 | H189: 33.7 | I189: 23.2
A190: 56 | B190: 11 | C190: DB | D190: 240 | E190: 3.11 | F190: 30.2 | G190: 15.6 | H190: 37.3 | I190: 18.3
A191: 56 | B191: 14 | C191: DB | D191: 332.2 | E191: 10.7 | F191: 39.7 | G191: 16.1
A192: 61 | B192: 7 | C192: HB | D192: 124.7 | E192: 1.24 | H192: 7.4 | I192: 5.2
A193: 61 | B193: 1 | C193: HB | D193: 106.6 | E193: 5.3 | F193: 17.1 | G193: 13 | H193: 18.4 | I193: 15.3
A194: 61 | B194: 4 | C194: HB | D194: 264.6 | E194: 3.7 | F194: 21.4 | G194: 15 | H194: 22.7 | I194: 17.4
A195: 61 | B195: 5 | C195: HB | D195: 324.2 | E195: 4.6 | F195: 22.7 | G195: 18 | H195: 30.4 | I195: 20.7
A196: 61 | B196: 2 | C196: JS | D196: 120.3 | E196: 6.7 | F196: 28.2 | G196: 21 | H196: 35.3 | I196: 23.2
A197: 61 | B197: 6 | C197: DB | D197: 56.1 | E197: 10.8 | F197: 55.3 | G197: 25
A198: 62 | B198: 10 | C198: HB | D198: 185.4 | E198: 6.4 | F198: 16.3 | G198: 11 | H198: 18.5 | I198: 14.3
A199: 62 | B199: 11 | C199: HB | D199: 168.9 | E199: 6.2 | F199: 12.8 | G199: 12 | H199: 19.3 | I199: 14.1
A200: 62 | B200: 6 | C200: DB | D200: 18 | E200: 6.4 | F200: 14.3 | G200: 15 | H200: 19.9 | I200: 19.3
... 54 more rows

Sheet finalni_odhady
B2: plocha | C2: V/ha2024 (m3/ha) | D2: V/ha2034 (m3/ha) | E2: T (m3/ha) | F2: CBP (m3/ha/rok)
B3: 21
B4: 22
B5: 23
B6: 31
B7: 32
B8: 33
B9: 34
B10: 41
B11: 42
B12: 43
B13: 44
B14: 51
B15: 52
B16: 53
B17: 54
B18: 55
B19: 56
B20: 61
B21: 62
B22: 63
B23: 64
B24: 65
B26: průměr (bodový odhad)
B27: směrodatná odchylka
B28: variační koeficient
B29: intervalový odhad
B30: přesnost odhadu (%)
B31: potřebný počet KZP při přesnosti 10 %
B32: potřebný počet KZP při přesnosti 5 %

Sheet Graf (hidden)
A1: r1 | B1: 3 | D1: 7 | F1: 12.62 | I1: Směrnice | M1: x | N1: y
A2: alfa | B2: x | C2: y | D2: x | E2: y | F2: x | G2: y | I2: 0 | J2: 14 | L2: 0 | M2: =SIN(RADIANS(L2))*13 -> 0 | N2: =COS(RADIANS(L2))*13 -> 13 | O2: 0°
A3: 0 | B3: =B$1*COS(RADIANS($A3)) -> 3 | C3: =B$1*SIN(RADIANS($A3)) -> 0 | D3: =D$1*COS(RADIANS($A3)) -> 7 | E3: =D$1*SIN(RADIANS($A3)) -> 0 | F3: =F$1*COS(RADIANS($A3)) -> 12.62 | G3: =F$1*SIN(RADIANS($A3)) -> 0 | I3: x | J3: y | L3: 10 | M3: =SIN(RADIANS(L3))*13 -> 2.25742631 | N3: =COS(RADIANS(L3))*13 -> 12.80250079 | O3: 10°
A4: 2 | B4: =B$1*COS(RADIANS($A4)) -> 2.998172481 | C4: =B$1*SIN(RADIANS($A4)) -> 0.1046984901 | D4: =D$1*COS(RADIANS($A4)) -> 6.995735789 | E4: =D$1*SIN(RADIANS($A4)) -> 0.2442964769 | F4: =F$1*COS(RADIANS($A4)) -> 12.61231224 | G4: =F$1*SIN(RADIANS($A4)) -> 0.4404316484 | I4: =12.62*SIN(RADIANS(I2)) -> 0 | J4: =12.62*COS(RADIANS(I2)) -> 12.62 | L4: 20 | M4: 4.446261863 | N4: 12.21600407 | O4: 20°
A5: 4 | B5: 2.992692151 | C5: 0.2092694212 | D5: 6.982948352 | E5: =D$1*SIN(RADIANS($A5)) -> 0.4882953162 | F5: 12.58925831 | G5: =F$1*SIN(RADIANS($A5)) -> 0.8803266987 | I5: =12.62*SIN(RADIANS(I2+180)) -> 1.54613735e-15 | J5: =12.62*COS(RADIANS(I2+180)) -> -12.62 | L5: 30 | M5: 6.5 | N5: 11.25833025 | O5: 30°
A6: 6 | B6: 2.983565686 | C6: 0.3135853898 | D6: 6.961653268 | E6: =D$1*SIN(RADIANS($A6)) -> 0.7316992429 | F6: 12.55086632 | G6: =F$1*SIN(RADIANS($A6)) -> 1.319149206 | I6: =I2+10 -> 10 | J6: =J2+1 -> 15 | L6: 40 | M6: 8.356238926 | N6: 9.958577761 | O6: 40°
A7: 8 | B7: 2.970804206 | C7: 0.4175193029 | D7: 6.931876481 | E7: =D$1*SIN(RADIANS($A7)) -> 0.9742117067 | F7: 12.49718303 | G7: =F$1*SIN(RADIANS($A7)) -> 1.756364534 | I7: x | J7: y | L7: 50 | M7: 9.958577761 | N7: 8.356238926 | O7: 50°
A8: 10 | B8: 2.954423259 | C8: 0.520944533 | D8: 6.893654271 | E8: =D$1*SIN(RADIANS($A8)) -> 1.215537244 | F8: 12.42827384 | G8: =F$1*SIN(RADIANS($A8)) -> 2.191440002 | I8: =12.62*SIN(RADIANS(I6)) -> 2.191440002 | J8: =12.62*COS(RADIANS(I6)) -> 12.42827384 | L8: 60 | M8: 11.25833025 | N8: 6.5 | O8: 60°
A9: 12 | B9: 2.934442802 | C9: 0.6237350725 | D9: 6.847033205 | E9: =D$1*SIN(RADIANS($A9)) -> 1.455381836 | F9: 12.34422272 | G9: =F$1*SIN(RADIANS($A9)) -> 2.623845538 | I9: =12.62*SIN(RADIANS(I6+180)) -> -2.191440002 | J9: =12.62*COS(RADIANS(I6+180)) -> -12.42827384 | L9: 70 | M9: 12.21600407 | N9: 4.446261863 | O9: 70°
A10: 14 | B10: 2.910887179 | C10: 0.7257656868 | D10: 6.792070084 | E10: =D$1*SIN(RADIANS($A10)) -> 1.693453269 | F10: 12.24513207 | G10: =F$1*SIN(RADIANS($A10)) -> 3.053054322 | I10: =I6+10 -> 20 | J10: =J6+1 -> 16 | L10: 80 | M10: 12.80250079 | N10: 2.25742631 | O10: 80°
A11: 16 | B11: 2.883785088 | C11: 0.8269120675 | D11: 6.728831872 | E11: =D$1*SIN(RADIANS($A11)) -> 1.929461491 | F11: 12.1311226 | G11: =F$1*SIN(RADIANS($A11)) -> 3.47854343 | I11: x | J11: y | L11: 90 | M11: 13 | N11: 7.963464957e-16 | O11: 90°
A12: 18 | B12: 2.853169549 | C12: 0.9270509831 | D12: 6.657395614 | E12: =D$1*SIN(RADIANS($A12)) -> 2.163118961 | F12: 12.00233324 | G12: =F$1*SIN(RADIANS($A12)) -> 3.899794469 | I12: =12.62*SIN(RADIANS(I10)) -> 4.316294209 | J12: =12.62*COS(RADIANS(I10)) -> 11.85892087 | L12: 100 | M12: 12.80250079 | N12: -2.25742631 | O12: 100°
A13: 20 | B13: 2.819077862 | C13: 1.02606043 | D13: 6.577848346 | E13: =D$1*SIN(RADIANS($A13)) -> 2.394141003 | F13: 11.85892087 | G13: =F$1*SIN(RADIANS($A13)) -> 4.316294209 | I13: =12.62*SIN(RADIANS(I10+180)) -> -4.316294209 | J13: =12.62*COS(RADIANS(I10+180)) -> -11.85892087 | L13: 110 | M13: 12.21600407 | N13: -4.446261863 | O13: 110°
A14: 22 | B14: 2.781551564 | C14: 1.12381978 | D14: 6.490286982 | E14: =D$1*SIN(RADIANS($A14)) -> 2.622246154 | F14: 11.70106024 | G14: =F$1*SIN(RADIANS($A14)) -> 4.727535209 | I14: =I10+10 -> 30 | J14: =J10+1 -> 17 | L14: 120 | M14: 11.25833025 | N14: -6.5 | O14: 120°
A15: 24 | B15: 2.740636373 | C15: 1.220209929 | D15: 6.394818203 | E15: =D$1*SIN(RADIANS($A15)) -> 2.847156502 | F15: 11.52894368 | G15: =F$1*SIN(RADIANS($A15)) -> 5.133016436 | I15: x | J15: y | L15: 130 | M15: 9.958577761 | N15: -8.356238926 | O15: 130°
A16: 26 | B16: 2.696382139 | C16: 1.31511344 | D16: 6.291558324 | E16: =D$1*SIN(RADIANS($A16)) -> 3.068598028 | F16: 11.34278086 | G16: =F$1*SIN(RADIANS($A16)) -> 5.532243872 | I16: =12.62*SIN(RADIANS(I14)) -> 6.31 | J16: =12.62*COS(RADIANS(I14)) -> 10.9292406 | L16: 140 | M16: 8.356238926 | N16: -9.958577761 | O16: 140°
A17: 28 | B17: 2.648842779 | C17: 1.408414688 | D17: 6.18063315 | E17: =D$1*SIN(RADIANS($A17)) -> 3.28630094 | F17: 11.14279862 | G17: =F$1*SIN(RADIANS($A17)) -> 5.924731122 | I17: =12.62*SIN(RADIANS(I14+180)) -> -6.31 | J17: =12.62*COS(RADIANS(I14+180)) -> -10.9292406 | L17: 150 | M17: 6.5 | N17: -11.25833025 | O17: 150°
A18: 30 | B18: 2.598076211 | C18: 1.5 | D18: 6.062177826 | E18: =D$1*SIN(RADIANS($A18)) -> 3.5 | F18: 10.9292406 | G18: =F$1*SIN(RADIANS($A18)) -> 6.31 | I18: =I14+10 -> 40 | J18: =J14+1 -> 18 | L18: 160 | M18: 4.446261863 | N18: -12.21600407 | O18: 160°
A19: 32 | B19: 2.544144288 | C19: 1.589757793 | D19: 5.936336673 | E19: =D$1*SIN(RADIANS($A19)) -> 3.70943485 | F19: 10.70236697 | G19: =F$1*SIN(RADIANS($A19)) -> 6.687581115 | I19: x | J19: y | L19: 170 | M19: 2.25742631 | N19: -12.80250079 | O19: 170°
A20: 34 | B20: 2.487112718 | C20: 1.67757871 | D20: 5.803263008 | E20: =D$1*SIN(RADIANS($A20)) -> 3.914350324 | F20: 10.46245417 | G20: =F$1*SIN(RADIANS($A20)) -> 7.057014442 | I20: =12.62*SIN(RADIANS(I18)) -> 8.111979634 | J20: =12.62*COS(RADIANS(I18)) -> 9.667480872 | L20: 180 | M20: 1.592692991e-15 | N20: -13 | O20: 180°
A21: 36 | B21: 2.427050983 | C21: 1.763355757 | D21: 5.663118961 | E21: =D$1*SIN(RADIANS($A21)) -> 4.114496766 | F21: 10.20979447 | G21: =F$1*SIN(RADIANS($A21)) -> 7.417849884 | I21: =12.62*SIN(RADIANS(I18+180)) -> -8.111979634 | J21: =12.62*COS(RADIANS(I18+180)) -> -9.667480872 | L21: 190 | M21: -2.25742631 | N21: -12.80250079 | O21: 190°
A22: 38 | B22: 2.364032261 | C22: 1.846984426 | D22: 5.516075275 | E22: =D$1*SIN(RADIANS($A22)) -> 4.309630327 | F22: 9.944695711 | G22: =F$1*SIN(RADIANS($A22)) -> 7.769647819 | I22: =I18+10 -> 50 | J22: =J18+1 -> 19 | L22: 200 | M22: -4.446261863 | N22: -12.21600407 | O22: 200°
A23: 40 | B23: 2.298133329 | C23: 1.928362829 | D23: 5.362311102 | E23: =D$1*SIN(RADIANS($A23)) -> 4.499513268 | F23: 9.667480872 | G23: =F$1*SIN(RADIANS($A23)) -> 8.111979634 | I23: x | J23: y | L23: 210 | M23: -6.5 | N23: -11.25833025 | O23: 210°
A24: 42 | B24: 2.229434476 | C24: 2.007391819 | D24: 5.202013778 | E24: =D$1*SIN(RADIANS($A24)) -> 4.683914245 | F24: 9.378487698 | G24: =F$1*SIN(RADIANS($A24)) -> 8.444428252 | I24: =12.62*SIN(RADIANS(I22)) -> 9.667480872 | J24: =12.62*COS(RADIANS(I22)) -> 8.111979634 | L24: 220 | M24: -8.356238926 | N24: -9.958577761 | O24: 220°
A25: 44 | B25: 2.158019401 | C25: 2.083975111 | D25: 5.035378602 | E25: =D$1*SIN(RADIANS($A25)) -> 4.862608593 | F25: 9.07806828 | G25: =F$1*SIN(RADIANS($A25)) -> 8.766588635 | I25: =12.62*SIN(RADIANS(I22+180)) -> -9.667480872 | J25: =12.62*COS(RADIANS(I22+180)) -> -8.111979634 | L25: 230 | M25: -9.958577761 | N25: -8.356238926 | O25: 230°
A26: 46 | B26: 2.083975111 | C26: 2.158019401 | D26: 4.862608593 | E26: =D$1*SIN(RADIANS($A26)) -> 5.035378602 | F26: 8.766588635 | G26: =F$1*SIN(RADIANS($A26)) -> 9.07806828 | I26: =I22+10 -> 60 | J26: =J22+1 -> 20 | L26: 240 | M26: -11.25833025 | N26: -6.5 | O26: 240°
A27: 48 | B27: 2.007391819 | C27: 2.229434476 | D27: 4.683914245 | E27: =D$1*SIN(RADIANS($A27)) -> 5.202013778 | F27: 8.444428252 | G27: =F$1*SIN(RADIANS($A27)) -> 9.378487698 | I27: x | J27: y | L27: 250 | M27: -12.21600407 | N27: -4.446261863 | O27: 250°
A28: 50 | B28: 1.928362829 | C28: 2.298133329 | D28: 4.499513268 | E28: =D$1*SIN(RADIANS($A28)) -> 5.362311102 | F28: 8.111979634 | G28: =F$1*SIN(RADIANS($A28)) -> 9.667480872 | I28: =12.62*SIN(RADIANS(I26)) -> 10.9292406 | J28: =12.62*COS(RADIANS(I26)) -> 6.31 | L28: 260 | M28: -12.80250079 | N28: -2.25742631 | O28: 260°
A29: 52 | B29: 1.846984426 | C29: 2.364032261 | D29: 4.309630327 | E29: =D$1*SIN(RADIANS($A29)) -> 5.516075275 | F29: 7.769647819 | G29: =F$1*SIN(RADIANS($A29)) -> 9.944695711 | I29: =12.62*SIN(RADIANS(I26+180)) -> -10.9292406 | J29: =12.62*COS(RADIANS(I26+180)) -> -6.31 | L29: 270 | M29: -13 | N29: -2.389039487e-15 | O29: 270°
A30: 54 | B30: 1.763355757 | C30: 2.427050983 | D30: 4.114496766 | E30: =D$1*SIN(RADIANS($A30)) -> 5.663118961 | F30: 7.417849884 | G30: =F$1*SIN(RADIANS($A30)) -> 10.20979447 | I30: =I26+10 -> 70 | J30: =J26+1 -> 21 | L30: 280 | M30: -12.80250079 | N30: 2.25742631 | O30: 280°
A31: 56 | B31: 1.67757871 | C31: 2.487112718 | D31: 3.914350324 | E31: =D$1*SIN(RADIANS($A31)) -> 5.803263008 | F31: 7.057014442 | G31: =F$1*SIN(RADIANS($A31)) -> 10.46245417 | I31: x | J31: y | L31: 290 | M31: -12.21600407 | N31: 4.446261863 | O31: 290°
A32: 58 | B32: 1.589757793 | C32: 2.544144288 | D32: 3.70943485 | E32: =D$1*SIN(RADIANS($A32)) -> 5.936336673 | F32: 6.687581115 | G32: =F$1*SIN(RADIANS($A32)) -> 10.70236697 | I32: =12.62*SIN(RADIANS(I30)) -> 11.85892087 | J32: =12.62*COS(RADIANS(I30)) -> 4.316294209 | L32: 300 | M32: -11.25833025 | N32: 6.5 | O32: 300°
A33: 60 | B33: 1.5 | C33: 2.598076211 | D33: 3.5 | E33: =D$1*SIN(RADIANS($A33)) -> 6.062177826 | F33: 6.31 | G33: =F$1*SIN(RADIANS($A33)) -> 10.9292406 | I33: =12.62*SIN(RADIANS(I30+180)) -> -11.85892087 | J33: =12.62*COS(RADIANS(I30+180)) -> -4.316294209 | L33: 310 | M33: -9.958577761 | N33: 8.356238926 | O33: 310°
A34: 62 | B34: 1.408414688 | C34: 2.648842779 | D34: 3.28630094 | E34: =D$1*SIN(RADIANS($A34)) -> 6.18063315 | F34: 5.924731122 | G34: =F$1*SIN(RADIANS($A34)) -> 11.14279862 | I34: =I30+10 -> 80 | J34: =J30+1 -> 22 | L34: 320 | M34: -8.356238926 | N34: 9.958577761 | O34: 320°
A35: 64 | B35: 1.31511344 | C35: 2.696382139 | D35: 3.068598028 | E35: =D$1*SIN(RADIANS($A35)) -> 6.291558324 | F35: 5.532243872 | G35: =F$1*SIN(RADIANS($A35)) -> 11.34278086 | I35: x | J35: y | L35: 330 | M35: -6.5 | N35: 11.25833025 | O35: 330°
A36: 66 | B36: 1.220209929 | C36: 2.740636373 | D36: 2.847156502 | E36: =D$1*SIN(RADIANS($A36)) -> 6.394818203 | F36: 5.133016436 | G36: =F$1*SIN(RADIANS($A36)) -> 11.52894368 | I36: =12.62*SIN(RADIANS(I34)) -> 12.42827384 | J36: =12.62*COS(RADIANS(I34)) -> 2.191440002 | L36: 340 | M36: -4.446261863 | N36: 12.21600407 | O36: 340°
A37: 68 | B37: 1.12381978 | C37: 2.781551564 | D37: 2.622246154 | E37: =D$1*SIN(RADIANS($A37)) -> 6.490286982 | F37: 4.727535209 | G37: =F$1*SIN(RADIANS($A37)) -> 11.70106024 | I37: =12.62*SIN(RADIANS(I34+180)) -> -12.42827384 | J37: =12.62*COS(RADIANS(I34+180)) -> -2.191440002 | L37: 350 | M37: -2.25742631 | N37: 12.80250079 | O37: 350°
A38: 70 | B38: 1.02606043 | C38: 2.819077862 | D38: 2.394141003 | E38: =D$1*SIN(RADIANS($A38)) -> 6.577848346 | F38: 4.316294209 | G38: =F$1*SIN(RADIANS($A38)) -> 11.85892087 | I38: =I34+10 -> 90 | J38: =J34+1 -> 23
A39: 72 | B39: 0.9270509831 | C39: 2.853169549 | D39: 2.163118961 | E39: =D$1*SIN(RADIANS($A39)) -> 6.657395614 | F39: 3.899794469 | G39: =F$1*SIN(RADIANS($A39)) -> 12.00233324 | I39: x | J39: y
A40: 74 | B40: 0.8269120675 | C40: 2.883785088 | D40: 1.929461491 | E40: =D$1*SIN(RADIANS($A40)) -> 6.728831872 | F40: 3.47854343 | G40: =F$1*SIN(RADIANS($A40)) -> 12.1311226 | I40: =12.62*SIN(RADIANS(I38)) -> 12.62 | J40: =12.62*COS(RADIANS(I38)) -> 7.73068675e-16
A41: 76 | B41: 0.7257656868 | C41: 2.910887179 | D41: 1.693453269 | E41: =D$1*SIN(RADIANS($A41)) -> 6.792070084 | F41: 3.053054322 | G41: =F$1*SIN(RADIANS($A41)) -> 12.24513207 | I41: =12.62*SIN(RADIANS(I38+180)) -> -12.62 | J41: =12.62*COS(RADIANS(I38+180)) -> -2.319206025e-15
A42: 78 | B42: 0.6237350725 | C42: 2.934442802 | D42: 1.455381836 | E42: =D$1*SIN(RADIANS($A42)) -> 6.847033205 | F42: 2.623845538 | G42: =F$1*SIN(RADIANS($A42)) -> 12.34422272 | I42: =I38+10 -> 100 | J42: =J38+1 -> 24
A43: 80 | B43: 0.520944533 | C43: 2.954423259 | D43: 1.215537244 | E43: =D$1*SIN(RADIANS($A43)) -> 6.893654271 | F43: 2.191440002 | G43: =F$1*SIN(RADIANS($A43)) -> 12.42827384 | I43: x | J43: y
A44: 82 | B44: 0.4175193029 | C44: 2.970804206 | D44: 0.9742117067 | E44: =D$1*SIN(RADIANS($A44)) -> 6.931876481 | F44: 1.756364534 | G44: =F$1*SIN(RADIANS($A44)) -> 12.49718303 | I44: =12.62*SIN(RADIANS(I42)) -> 12.42827384 | J44: =12.62*COS(RADIANS(I42)) -> -2.191440002
A45: 84 | B45: 0.3135853898 | C45: 2.983565686 | D45: 0.7316992429 | E45: =D$1*SIN(RADIANS($A45)) -> 6.961653268 | F45: 1.319149206 | G45: =F$1*SIN(RADIANS($A45)) -> 12.55086632 | I45: =12.62*SIN(RADIANS(I42+180)) -> -12.42827384 | J45: =12.62*COS(RADIANS(I42+180)) -> 2.191440002
A46: 86 | B46: 0.2092694212 | C46: 2.992692151 | D46: 0.4882953162 | E46: =D$1*SIN(RADIANS($A46)) -> 6.982948352 | F46: 0.8803266987 | G46: =F$1*SIN(RADIANS($A46)) -> 12.58925831 | I46: =I42+10 -> 110 | J46: =J42+1 -> 25
A47: 88 | B47: 0.1046984901 | C47: 2.998172481 | D47: 0.2442964769 | E47: =D$1*SIN(RADIANS($A47)) -> 6.995735789 | F47: 0.4404316484 | G47: =F$1*SIN(RADIANS($A47)) -> 12.61231224 | I47: x | J47: y
A48: 90 | B48: 1.837722682e-16 | C48: 3 | D48: 4.288019592e-16 | E48: =D$1*SIN(RADIANS($A48)) -> 7 | F48: 7.73068675e-16 | G48: =F$1*SIN(RADIANS($A48)) -> 12.62 | I48: =12.62*SIN(RADIANS(I46)) -> 11.85892087 | J48: =12.62*COS(RADIANS(I46)) -> -4.316294209
A49: 92 | B49: -0.1046984901 | C49: 2.998172481 | D49: -0.2442964769 | E49: =D$1*SIN(RADIANS($A49)) -> 6.995735789 | F49: -0.4404316484 | G49: =F$1*SIN(RADIANS($A49)) -> 12.61231224 | I49: =12.62*SIN(RADIANS(I46+180)) -> -11.85892087 | J49: =12.62*COS(RADIANS(I46+180)) -> 4.316294209
A50: 94 | B50: -0.2092694212 | C50: 2.992692151 | D50: -0.4882953162 | E50: =D$1*SIN(RADIANS($A50)) -> 6.982948352 | F50: -0.8803266987 | G50: =F$1*SIN(RADIANS($A50)) -> 12.58925831 | I50: =I46+10 -> 120 | J50: =J46+1 -> 26
A51: 96 | B51: -0.3135853898 | C51: 2.983565686 | D51: -0.7316992429 | E51: =D$1*SIN(RADIANS($A51)) -> 6.961653268 | F51: -1.319149206 | G51: =F$1*SIN(RADIANS($A51)) -> 12.55086632 | I51: x | J51: y
A52: 98 | B52: -0.4175193029 | C52: 2.970804206 | D52: -0.9742117067 | E52: =D$1*SIN(RADIANS($A52)) -> 6.931876481 | F52: -1.756364534 | G52: =F$1*SIN(RADIANS($A52)) -> 12.49718303 | I52: =12.62*SIN(RADIANS(I50)) -> 10.9292406 | J52: =12.62*COS(RADIANS(I50)) -> -6.31
A53: 100 | B53: -0.520944533 | C53: 2.954423259 | D53: -1.215537244 | E53: =D$1*SIN(RADIANS($A53)) -> 6.893654271 | F53: -2.191440002 | G53: =F$1*SIN(RADIANS($A53)) -> 12.42827384 | I53: =12.62*SIN(RADIANS(I50+180)) -> -10.9292406 | J53: =12.62*COS(RADIANS(I50+180)) -> 6.31
A54: 102 | B54: -0.6237350725 | C54: 2.934442802 | D54: -1.455381836 | E54: =D$1*SIN(RADIANS($A54)) -> 6.847033205 | F54: -2.623845538 | G54: =F$1*SIN(RADIANS($A54)) -> 12.34422272 | I54: =I50+10 -> 130 | J54: =J50+1 -> 27
A55: 104 | B55: -0.7257656868 | C55: 2.910887179 | D55: -1.693453269 | E55: =D$1*SIN(RADIANS($A55)) -> 6.792070084 | F55: -3.053054322 | G55: =F$1*SIN(RADIANS($A55)) -> 12.24513207 | I55: x | J55: y
A56: 106 | B56: -0.8269120675 | C56: 2.883785088 | D56: -1.929461491 | E56: =D$1*SIN(RADIANS($A56)) -> 6.728831872 | F56: -3.47854343 | G56: =F$1*SIN(RADIANS($A56)) -> 12.1311226 | I56: =12.62*SIN(RADIANS(I54)) -> 9.667480872 | J56: =12.62*COS(RADIANS(I54)) -> -8.111979634
A57: 108 | B57: -0.9270509831 | C57: 2.853169549 | D57: -2.163118961 | E57: =D$1*SIN(RADIANS($A57)) -> 6.657395614 | F57: -3.899794469 | G57: =F$1*SIN(RADIANS($A57)) -> 12.00233324 | I57: =12.62*SIN(RADIANS(I54+180)) -> -9.667480872 | J57: =12.62*COS(RADIANS(I54+180)) -> 8.111979634
A58: 110 | B58: -1.02606043 | C58: 2.819077862 | D58: -2.394141003 | E58: =D$1*SIN(RADIANS($A58)) -> 6.577848346 | F58: -4.316294209 | G58: =F$1*SIN(RADIANS($A58)) -> 11.85892087 | I58: =I54+10 -> 140 | J58: =J54+1 -> 28
A59: 112 | B59: -1.12381978 | C59: 2.781551564 | D59: -2.622246154 | E59: =D$1*SIN(RADIANS($A59)) -> 6.490286982 | F59: -4.727535209 | G59: =F$1*SIN(RADIANS($A59)) -> 11.70106024 | I59: x | J59: y
A60: 114 | B60: -1.220209929 | C60: 2.740636373 | D60: -2.847156502 | E60: =D$1*SIN(RADIANS($A60)) -> 6.394818203 | F60: -5.133016436 | G60: =F$1*SIN(RADIANS($A60)) -> 11.52894368 | I60: =12.62*SIN(RADIANS(I58)) -> 8.111979634 | J60: =12.62*COS(RADIANS(I58)) -> -9.667480872
A61: 116 | B61: -1.31511344 | C61: 2.696382139 | D61: -3.068598028 | E61: =D$1*SIN(RADIANS($A61)) -> 6.291558324 | F61: -5.532243872 | G61: =F$1*SIN(RADIANS($A61)) -> 11.34278086 | I61: =12.62*SIN(RADIANS(I58+180)) -> -8.111979634 | J61: =12.62*COS(RADIANS(I58+180)) -> 9.667480872
A62: 118 | B62: -1.408414688 | C62: 2.648842779 | D62: -3.28630094 | E62: =D$1*SIN(RADIANS($A62)) -> 6.18063315 | F62: -5.924731122 | G62: =F$1*SIN(RADIANS($A62)) -> 11.14279862 | I62: =I58+10 -> 150 | J62: =J58+1 -> 29
A63: 120 | B63: -1.5 | C63: 2.598076211 | D63: -3.5 | E63: =D$1*SIN(RADIANS($A63)) -> 6.062177826 | F63: -6.31 | G63: =F$1*SIN(RADIANS($A63)) -> 10.9292406 | I63: x | J63: y
A64: 122 | B64: -1.589757793 | C64: 2.544144288 | D64: -3.70943485 | E64: =D$1*SIN(RADIANS($A64)) -> 5.936336673 | F64: -6.687581115 | G64: =F$1*SIN(RADIANS($A64)) -> 10.70236697 | I64: =12.62*SIN(RADIANS(I62)) -> 6.31 | J64: =12.62*COS(RADIANS(I62)) -> -10.9292406
A65: 124 | B65: -1.67757871 | C65: 2.487112718 | D65: -3.914350324 | E65: =D$1*SIN(RADIANS($A65)) -> 5.803263008 | F65: -7.057014442 | G65: =F$1*SIN(RADIANS($A65)) -> 10.46245417 | I65: =12.62*SIN(RADIANS(I62+180)) -> -6.31 | J65: =12.62*COS(RADIANS(I62+180)) -> 10.9292406
A66: 126 | B66: -1.763355757 | C66: 2.427050983 | D66: -4.114496766 | E66: =D$1*SIN(RADIANS($A66)) -> 5.663118961 | F66: -7.417849884 | G66: =F$1*SIN(RADIANS($A66)) -> 10.20979447 | I66: =I62+10 -> 160 | J66: =J62+1 -> 30
A67: 128 | B67: -1.846984426 | C67: 2.364032261 | D67: -4.309630327 | E67: =D$1*SIN(RADIANS($A67)) -> 5.516075275 | F67: -7.769647819 | G67: =F$1*SIN(RADIANS($A67)) -> 9.944695711 | I67: x | J67: y
A68: 130 | B68: =B$1*COS(RADIANS($A68)) -> -1.928362829 | C68: =B$1*SIN(RADIANS($A68)) -> 2.298133329 | D68: =D$1*COS(RADIANS($A68)) -> -4.499513268 | E68: =D$1*SIN(RADIANS($A68)) -> 5.362311102 | F68: =F$1*COS(RADIANS($A68)) -> -8.111979634 | G68: =F$1*SIN(RADIANS($A68)) -> 9.667480872 | I68: =12.62*SIN(RADIANS(I66)) -> 4.316294209 | J68: =12.62*COS(RADIANS(I66)) -> -11.85892087
A69: 132 | B69: -2.007391819 | C69: 2.229434476 | D69: -4.683914245 | E69: =D$1*SIN(RADIANS($A69)) -> 5.202013778 | F69: -8.444428252 | G69: =F$1*SIN(RADIANS($A69)) -> 9.378487698 | I69: =12.62*SIN(RADIANS(I66+180)) -> -4.316294209 | J69: =12.62*COS(RADIANS(I66+180)) -> 11.85892087
A70: 134 | B70: -2.083975111 | C70: 2.158019401 | D70: -4.862608593 | E70: =D$1*SIN(RADIANS($A70)) -> 5.035378602 | F70: -8.766588635 | G70: =F$1*SIN(RADIANS($A70)) -> 9.07806828 | I70: =I66+10 -> 170 | J70: =J66+1 -> 31
A71: 136 | B71: -2.158019401 | C71: 2.083975111 | D71: -5.035378602 | E71: =D$1*SIN(RADIANS($A71)) -> 4.862608593 | F71: -9.07806828 | G71: =F$1*SIN(RADIANS($A71)) -> 8.766588635 | I71: x | J71: y
A72: 138 | B72: -2.229434476 | C72: 2.007391819 | D72: -5.202013778 | E72: =D$1*SIN(RADIANS($A72)) -> 4.683914245 | F72: -9.378487698 | G72: =F$1*SIN(RADIANS($A72)) -> 8.444428252 | I72: =12.62*SIN(RADIANS(I70)) -> 2.191440002 | J72: =12.62*COS(RADIANS(I70)) -> -12.42827384
A73: 140 | B73: -2.298133329 | C73: 1.928362829 | D73: -5.362311102 | E73: =D$1*SIN(RADIANS($A73)) -> 4.499513268 | F73: -9.667480872 | G73: =F$1*SIN(RADIANS($A73)) -> 8.111979634 | I73: =12.62*SIN(RADIANS(I70+180)) -> -2.191440002 | J73: =12.62*COS(RADIANS(I70+180)) -> 12.42827384
A74: 142 | B74: -2.364032261 | C74: 1.846984426 | D74: -5.516075275 | E74: =D$1*SIN(RADIANS($A74)) -> 4.309630327 | F74: -9.944695711 | G74: =F$1*SIN(RADIANS($A74)) -> 7.769647819
A75: 144 | B75: -2.427050983 | C75: 1.763355757 | D75: -5.663118961 | E75: =D$1*SIN(RADIANS($A75)) -> 4.114496766 | F75: -10.20979447 | G75: =F$1*SIN(RADIANS($A75)) -> 7.417849884
A76: 146 | B76: -2.487112718 | C76: 1.67757871 | D76: -5.803263008 | E76: =D$1*SIN(RADIANS($A76)) -> 3.914350324 | F76: -10.46245417 | G76: =F$1*SIN(RADIANS($A76)) -> 7.057014442
A77: 148 | B77: -2.544144288 | C77: 1.589757793 | D77: -5.936336673 | E77: =D$1*SIN(RADIANS($A77)) -> 3.70943485 | F77: -10.70236697 | G77: =F$1*SIN(RADIANS($A77)) -> 6.687581115
A78: 150 | B78: -2.598076211 | C78: 1.5 | D78: -6.062177826 | E78: =D$1*SIN(RADIANS($A78)) -> 3.5 | F78: -10.9292406 | G78: =F$1*SIN(RADIANS($A78)) -> 6.31
A79: 152 | B79: -2.648842779 | C79: 1.408414688 | D79: -6.18063315 | E79: =D$1*SIN(RADIANS($A79)) -> 3.28630094 | F79: -11.14279862 | G79: =F$1*SIN(RADIANS($A79)) -> 5.924731122
A80: 154 | B80: -2.696382139 | C80: 1.31511344 | D80: -6.291558324 | E80: =D$1*SIN(RADIANS($A80)) -> 3.068598028 | F80: -11.34278086 | G80: =F$1*SIN(RADIANS($A80)) -> 5.532243872
A81: 156 | B81: -2.740636373 | C81: 1.220209929 | D81: -6.394818203 | E81: =D$1*SIN(RADIANS($A81)) -> 2.847156502 | F81: -11.52894368 | G81: =F$1*SIN(RADIANS($A81)) -> 5.133016436
A82: 158 | B82: -2.781551564 | C82: 1.12381978 | D82: -6.490286982 | E82: =D$1*SIN(RADIANS($A82)) -> 2.622246154 | F82: -11.70106024 | G82: =F$1*SIN(RADIANS($A82)) -> 4.727535209
A83: 160 | B83: -2.819077862 | C83: 1.02606043 | D83: -6.577848346 | E83: =D$1*SIN(RADIANS($A83)) -> 2.394141003 | F83: -11.85892087 | G83: =F$1*SIN(RADIANS($A83)) -> 4.316294209
A84: 162 | B84: -2.853169549 | C84: 0.9270509831 | D84: -6.657395614 | E84: =D$1*SIN(RADIANS($A84)) -> 2.163118961 | F84: -12.00233324 | G84: =F$1*SIN(RADIANS($A84)) -> 3.899794469
A85: 164 | B85: -2.883785088 | C85: 0.8269120675 | D85: -6.728831872 | E85: =D$1*SIN(RADIANS($A85)) -> 1.929461491 | F85: -12.1311226 | G85: =F$1*SIN(RADIANS($A85)) -> 3.47854343
A86: 166 | B86: -2.910887179 | C86: 0.7257656868 | D86: -6.792070084 | E86: =D$1*SIN(RADIANS($A86)) -> 1.693453269 | F86: -12.24513207 | G86: =F$1*SIN(RADIANS($A86)) -> 3.053054322
A87: 168 | B87: -2.934442802 | C87: 0.6237350725 | D87: -6.847033205 | E87: =D$1*SIN(RADIANS($A87)) -> 1.455381836 | F87: -12.34422272 | G87: =F$1*SIN(RADIANS($A87)) -> 2.623845538
A88: 170 | B88: -2.954423259 | C88: 0.520944533 | D88: -6.893654271 | E88: =D$1*SIN(RADIANS($A88)) -> 1.215537244 | F88: -12.42827384 | G88: =F$1*SIN(RADIANS($A88)) -> 2.191440002
A89: 172 | B89: -2.970804206 | C89: 0.4175193029 | D89: -6.931876481 | E89: =D$1*SIN(RADIANS($A89)) -> 0.9742117067 | F89: -12.49718303 | G89: =F$1*SIN(RADIANS($A89)) -> 1.756364534
A90: 174 | B90: -2.983565686 | C90: 0.3135853898 | D90: -6.961653268 | E90: =D$1*SIN(RADIANS($A90)) -> 0.7316992429 | F90: -12.55086632 | G90: =F$1*SIN(RADIANS($A90)) -> 1.319149206
A91: 176 | B91: -2.992692151 | C91: 0.2092694212 | D91: -6.982948352 | E91: =D$1*SIN(RADIANS($A91)) -> 0.4882953162 | F91: -12.58925831 | G91: =F$1*SIN(RADIANS($A91)) -> 0.8803266987
A92: 178 | B92: -2.998172481 | C92: 0.1046984901 | D92: -6.995735789 | E92: =D$1*SIN(RADIANS($A92)) -> 0.2442964769 | F92: -12.61231224 | G92: =F$1*SIN(RADIANS($A92)) -> 0.4404316484
A93: 180 | B93: -3 | C93: 3.675445365e-16 | D93: -7 | E93: =D$1*SIN(RADIANS($A93)) -> 8.576039184e-16 | F93: -12.62 | G93: =F$1*SIN(RADIANS($A93)) -> 1.54613735e-15
A94: 182 | B94: -2.998172481 | C94: -0.1046984901 | D94: -6.995735789 | E94: =D$1*SIN(RADIANS($A94)) -> -0.2442964769 | F94: -12.61231224 | G94: =F$1*SIN(RADIANS($A94)) -> -0.4404316484
A95: 184 | B95: -2.992692151 | C95: -0.2092694212 | D95: -6.982948352 | E95: =D$1*SIN(RADIANS($A95)) -> -0.4882953162 | F95: -12.58925831 | G95: =F$1*SIN(RADIANS($A95)) -> -0.8803266987
A96: 186 | B96: -2.983565686 | C96: -0.3135853898 | D96: -6.961653268 | E96: =D$1*SIN(RADIANS($A96)) -> -0.7316992429 | F96: -12.55086632 | G96: =F$1*SIN(RADIANS($A96)) -> -1.319149206
A97: 188 | B97: -2.970804206 | C97: -0.4175193029 | D97: -6.931876481 | E97: =D$1*SIN(RADIANS($A97)) -> -0.9742117067 | F97: -12.49718303 | G97: =F$1*SIN(RADIANS($A97)) -> -1.756364534
A98: 190 | B98: -2.954423259 | C98: -0.520944533 | D98: -6.893654271 | E98: =D$1*SIN(RADIANS($A98)) -> -1.215537244 | F98: -12.42827384 | G98: =F$1*SIN(RADIANS($A98)) -> -2.191440002
A99: 192 | B99: -2.934442802 | C99: -0.6237350725 | D99: -6.847033205 | E99: =D$1*SIN(RADIANS($A99)) -> -1.455381836 | F99: -12.34422272 | G99: =F$1*SIN(RADIANS($A99)) -> -2.623845538
A100: 194 | B100: -2.910887179 | C100: -0.7257656868 | D100: -6.792070084 | E100: =D$1*SIN(RADIANS($A100)) -> -1.693453269 | F100: -12.24513207 | G100: =F$1*SIN(RADIANS($A100)) -> -3.053054322
A101: 196 | B101: -2.883785088 | C101: -0.8269120675 | D101: -6.728831872 | E101: =D$1*SIN(RADIANS($A101)) -> -1.929461491 | F101: -12.1311226 | G101: =F$1*SIN(RADIANS($A101)) -> -3.47854343
A102: 198 | B102: -2.853169549 | C102: -0.9270509831 | D102: -6.657395614 | E102: =D$1*SIN(RADIANS($A102)) -> -2.163118961 | F102: -12.00233324 | G102: =F$1*SIN(RADIANS($A102)) -> -3.899794469
A103: 200 | B103: -2.819077862 | C103: -1.02606043 | D103: -6.577848346 | E103: =D$1*SIN(RADIANS($A103)) -> -2.394141003 | F103: -11.85892087 | G103: =F$1*SIN(RADIANS($A103)) -> -4.316294209
A104: 202 | B104: -2.781551564 | C104: -1.12381978 | D104: -6.490286982 | E104: =D$1*SIN(RADIANS($A104)) -> -2.622246154 | F104: -11.70106024 | G104: =F$1*SIN(RADIANS($A104)) -> -4.727535209
A105: 204 | B105: -2.740636373 | C105: -1.220209929 | D105: -6.394818203 | E105: =D$1*SIN(RADIANS($A105)) -> -2.847156502 | F105: -11.52894368 | G105: =F$1*SIN(RADIANS($A105)) -> -5.133016436
A106: 206 | B106: -2.696382139 | C106: -1.31511344 | D106: -6.291558324 | E106: =D$1*SIN(RADIANS($A106)) -> -3.068598028 | F106: -11.34278086 | G106: =F$1*SIN(RADIANS($A106)) -> -5.532243872
A107: 208 | B107: -2.648842779 | C107: -1.408414688 | D107: -6.18063315 | E107: =D$1*SIN(RADIANS($A107)) -> -3.28630094 | F107: -11.14279862 | G107: =F$1*SIN(RADIANS($A107)) -> -5.924731122
A108: 210 | B108: -2.598076211 | C108: -1.5 | D108: -6.062177826 | E108: =D$1*SIN(RADIANS($A108)) -> -3.5 | F108: -10.9292406 | G108: =F$1*SIN(RADIANS($A108)) -> -6.31
A109: 212 | B109: -2.544144288 | C109: -1.589757793 | D109: -5.936336673 | E109: =D$1*SIN(RADIANS($A109)) -> -3.70943485 | F109: -10.70236697 | G109: =F$1*SIN(RADIANS($A109)) -> -6.687581115
A110: 214 | B110: -2.487112718 | C110: -1.67757871 | D110: -5.803263008 | E110: =D$1*SIN(RADIANS($A110)) -> -3.914350324 | F110: -10.46245417 | G110: =F$1*SIN(RADIANS($A110)) -> -7.057014442
A111: 216 | B111: -2.427050983 | C111: -1.763355757 | D111: -5.663118961 | E111: =D$1*SIN(RADIANS($A111)) -> -4.114496766 | F111: -10.20979447 | G111: =F$1*SIN(RADIANS($A111)) -> -7.417849884
A112: 218 | B112: -2.364032261 | C112: -1.846984426 | D112: -5.516075275 | E112: =D$1*SIN(RADIANS($A112)) -> -4.309630327 | F112: -9.944695711 | G112: =F$1*SIN(RADIANS($A112)) -> -7.769647819
A113: 220 | B113: -2.298133329 | C113: -1.928362829 | D113: -5.362311102 | E113: =D$1*SIN(RADIANS($A113)) -> -4.499513268 | F113: -9.667480872 | G113: =F$1*SIN(RADIANS($A113)) -> -8.111979634
A114: 222 | B114: -2.229434476 | C114: -2.007391819 | D114: -5.202013778 | E114: =D$1*SIN(RADIANS($A114)) -> -4.683914245 | F114: -9.378487698 | G114: =F$1*SIN(RADIANS($A114)) -> -8.444428252
A115: 224 | B115: -2.158019401 | C115: -2.083975111 | D115: -5.035378602 | E115: =D$1*SIN(RADIANS($A115)) -> -4.862608593 | F115: -9.07806828 | G115: =F$1*SIN(RADIANS($A115)) -> -8.766588635
A116: 226 | B116: -2.083975111 | C116: -2.158019401 | D116: -4.862608593 | E116: =D$1*SIN(RADIANS($A116)) -> -5.035378602 | F116: -8.766588635 | G116: =F$1*SIN(RADIANS($A116)) -> -9.07806828
A117: 228 | B117: -2.007391819 | C117: -2.229434476 | D117: -4.683914245 | E117: =D$1*SIN(RADIANS($A117)) -> -5.202013778 | F117: -8.444428252 | G117: =F$1*SIN(RADIANS($A117)) -> -9.378487698
A118: 230 | B118: -1.928362829 | C118: -2.298133329 | D118: -4.499513268 | E118: =D$1*SIN(RADIANS($A118)) -> -5.362311102 | F118: -8.111979634 | G118: =F$1*SIN(RADIANS($A118)) -> -9.667480872
A119: 232 | B119: -1.846984426 | C119: -2.364032261 | D119: -4.309630327 | E119: =D$1*SIN(RADIANS($A119)) -> -5.516075275 | F119: -7.769647819 | G119: =F$1*SIN(RADIANS($A119)) -> -9.944695711
A120: 234 | B120: -1.763355757 | C120: -2.427050983 | D120: -4.114496766 | E120: =D$1*SIN(RADIANS($A120)) -> -5.663118961 | F120: -7.417849884 | G120: =F$1*SIN(RADIANS($A120)) -> -10.20979447
A121: 236 | B121: -1.67757871 | C121: -2.487112718 | D121: -3.914350324 | E121: =D$1*SIN(RADIANS($A121)) -> -5.803263008 | F121: -7.057014442 | G121: =F$1*SIN(RADIANS($A121)) -> -10.46245417
A122: 238 | B122: -1.589757793 | C122: -2.544144288 | D122: -3.70943485 | E122: =D$1*SIN(RADIANS($A122)) -> -5.936336673 | F122: -6.687581115 | G122: =F$1*SIN(RADIANS($A122)) -> -10.70236697
A123: 240 | B123: -1.5 | C123: -2.598076211 | D123: -3.5 | E123: =D$1*SIN(RADIANS($A123)) -> -6.062177826 | F123: -6.31 | G123: =F$1*SIN(RADIANS($A123)) -> -10.9292406
A124: 242 | B124: -1.408414688 | C124: -2.648842779 | D124: -3.28630094 | E124: =D$1*SIN(RADIANS($A124)) -> -6.18063315 | F124: -5.924731122 | G124: =F$1*SIN(RADIANS($A124)) -> -11.14279862
A125: 244 | B125: -1.31511344 | C125: -2.696382139 | D125: -3.068598028 | E125: =D$1*SIN(RADIANS($A125)) -> -6.291558324 | F125: -5.532243872 | G125: =F$1*SIN(RADIANS($A125)) -> -11.34278086
A126: 246 | B126: -1.220209929 | C126: -2.740636373 | D126: -2.847156502 | E126: =D$1*SIN(RADIANS($A126)) -> -6.394818203 | F126: -5.133016436 | G126: =F$1*SIN(RADIANS($A126)) -> -11.52894368
A127: 248 | B127: -1.12381978 | C127: -2.781551564 | D127: -2.622246154 | E127: =D$1*SIN(RADIANS($A127)) -> -6.490286982 | F127: -4.727535209 | G127: =F$1*SIN(RADIANS($A127)) -> -11.70106024
A128: 250 | B128: -1.02606043 | C128: -2.819077862 | D128: -2.394141003 | E128: =D$1*SIN(RADIANS($A128)) -> -6.577848346 | F128: -4.316294209 | G128: =F$1*SIN(RADIANS($A128)) -> -11.85892087
A129: 252 | B129: -0.9270509831 | C129: -2.853169549 | D129: -2.163118961 | E129: =D$1*SIN(RADIANS($A129)) -> -6.657395614 | F129: -3.899794469 | G129: =F$1*SIN(RADIANS($A129)) -> -12.00233324
A130: 254 | B130: -0.8269120675 | C130: -2.883785088 | D130: -1.929461491 | E130: =D$1*SIN(RADIANS($A130)) -> -6.728831872 | F130: -3.47854343 | G130: =F$1*SIN(RADIANS($A130)) -> -12.1311226
A131: 256 | B131: -0.7257656868 | C131: -2.910887179 | D131: -1.693453269 | E131: =D$1*SIN(RADIANS($A131)) -> -6.792070084 | F131: -3.053054322 | G131: =F$1*SIN(RADIANS($A131)) -> -12.24513207
A132: 258 | B132: =B$1*COS(RADIANS($A132)) -> -0.6237350725 | C132: =B$1*SIN(RADIANS($A132)) -> -2.934442802 | D132: =D$1*COS(RADIANS($A132)) -> -1.455381836 | E132: =D$1*SIN(RADIANS($A132)) -> -6.847033205 | F132: =F$1*COS(RADIANS($A132)) -> -2.623845538 | G132: =F$1*SIN(RADIANS($A132)) -> -12.34422272
A133: 260 | B133: -0.520944533 | C133: -2.954423259 | D133: -1.215537244 | E133: =D$1*SIN(RADIANS($A133)) -> -6.893654271 | F133: -2.191440002 | G133: =F$1*SIN(RADIANS($A133)) -> -12.42827384
A134: 262 | B134: -0.4175193029 | C134: -2.970804206 | D134: -0.9742117067 | E134: =D$1*SIN(RADIANS($A134)) -> -6.931876481 | F134: -1.756364534 | G134: =F$1*SIN(RADIANS($A134)) -> -12.49718303
A135: 264 | B135: -0.3135853898 | C135: -2.983565686 | D135: -0.7316992429 | E135: =D$1*SIN(RADIANS($A135)) -> -6.961653268 | F135: -1.319149206 | G135: =F$1*SIN(RADIANS($A135)) -> -12.55086632
A136: 266 | B136: -0.2092694212 | C136: -2.992692151 | D136: -0.4882953162 | E136: =D$1*SIN(RADIANS($A136)) -> -6.982948352 | F136: -0.8803266987 | G136: =F$1*SIN(RADIANS($A136)) -> -12.58925831
A137: 268 | B137: -0.1046984901 | C137: -2.998172481 | D137: -0.2442964769 | E137: =D$1*SIN(RADIANS($A137)) -> -6.995735789 | F137: -0.4404316484 | G137: =F$1*SIN(RADIANS($A137)) -> -12.61231224
A138: 270 | B138: -5.513168047e-16 | C138: -3 | D138: -1.286405878e-15 | E138: =D$1*SIN(RADIANS($A138)) -> -7 | F138: -2.319206025e-15 | G138: =F$1*SIN(RADIANS($A138)) -> -12.62
A139: 272 | B139: 0.1046984901 | C139: -2.998172481 | D139: 0.2442964769 | E139: =D$1*SIN(RADIANS($A139)) -> -6.995735789 | F139: 0.4404316484 | G139: =F$1*SIN(RADIANS($A139)) -> -12.61231224
A140: 274 | B140: 0.2092694212 | C140: -2.992692151 | D140: 0.4882953162 | E140: =D$1*SIN(RADIANS($A140)) -> -6.982948352 | F140: 0.8803266987 | G140: =F$1*SIN(RADIANS($A140)) -> -12.58925831
A141: 276 | B141: 0.3135853898 | C141: -2.983565686 | D141: 0.7316992429 | E141: =D$1*SIN(RADIANS($A141)) -> -6.961653268 | F141: 1.319149206 | G141: =F$1*SIN(RADIANS($A141)) -> -12.55086632
A142: 278 | B142: 0.4175193029 | C142: -2.970804206 | D142: 0.9742117067 | E142: =D$1*SIN(RADIANS($A142)) -> -6.931876481 | F142: 1.756364534 | G142: =F$1*SIN(RADIANS($A142)) -> -12.49718303
A143: 280 | B143: 0.520944533 | C143: -2.954423259 | D143: 1.215537244 | E143: =D$1*SIN(RADIANS($A143)) -> -6.893654271 | F143: 2.191440002 | G143: =F$1*SIN(RADIANS($A143)) -> -12.42827384
A144: 282 | B144: 0.6237350725 | C144: -2.934442802 | D144: 1.455381836 | E144: =D$1*SIN(RADIANS($A144)) -> -6.847033205 | F144: 2.623845538 | G144: =F$1*SIN(RADIANS($A144)) -> -12.34422272
A145: 284 | B145: 0.7257656868 | C145: -2.910887179 | D145: 1.693453269 | E145: =D$1*SIN(RADIANS($A145)) -> -6.792070084 | F145: 3.053054322 | G145: =F$1*SIN(RADIANS($A145)) -> -12.24513207
A146: 286 | B146: 0.8269120675 | C146: -2.883785088 | D146: 1.929461491 | E146: =D$1*SIN(RADIANS($A146)) -> -6.728831872 | F146: 3.47854343 | G146: =F$1*SIN(RADIANS($A146)) -> -12.1311226
A147: 288 | B147: 0.9270509831 | C147: -2.853169549 | D147: 2.163118961 | E147: =D$1*SIN(RADIANS($A147)) -> -6.657395614 | F147: 3.899794469 | G147: =F$1*SIN(RADIANS($A147)) -> -12.00233324
A148: 290 | B148: 1.02606043 | C148: -2.819077862 | D148: 2.394141003 | E148: =D$1*SIN(RADIANS($A148)) -> -6.577848346 | F148: 4.316294209 | G148: =F$1*SIN(RADIANS($A148)) -> -11.85892087
A149: 292 | B149: 1.12381978 | C149: -2.781551564 | D149: 2.622246154 | E149: =D$1*SIN(RADIANS($A149)) -> -6.490286982 | F149: 4.727535209 | G149: =F$1*SIN(RADIANS($A149)) -> -11.70106024
A150: 294 | B150: 1.220209929 | C150: -2.740636373 | D150: 2.847156502 | E150: =D$1*SIN(RADIANS($A150)) -> -6.394818203 | F150: 5.133016436 | G150: =F$1*SIN(RADIANS($A150)) -> -11.52894368
A151: 296 | B151: 1.31511344 | C151: -2.696382139 | D151: 3.068598028 | E151: =D$1*SIN(RADIANS($A151)) -> -6.291558324 | F151: 5.532243872 | G151: =F$1*SIN(RADIANS($A151)) -> -11.34278086
A152: 298 | B152: 1.408414688 | C152: -2.648842779 | D152: 3.28630094 | E152: =D$1*SIN(RADIANS($A152)) -> -6.18063315 | F152: 5.924731122 | G152: =F$1*SIN(RADIANS($A152)) -> -11.14279862
A153: 300 | B153: 1.5 | C153: -2.598076211 | D153: 3.5 | E153: =D$1*SIN(RADIANS($A153)) -> -6.062177826 | F153: 6.31 | G153: =F$1*SIN(RADIANS($A153)) -> -10.9292406
A154: 302 | B154: 1.589757793 | C154: -2.544144288 | D154: 3.70943485 | E154: =D$1*SIN(RADIANS($A154)) -> -5.936336673 | F154: 6.687581115 | G154: =F$1*SIN(RADIANS($A154)) -> -10.70236697
A155: 304 | B155: 1.67757871 | C155: -2.487112718 | D155: 3.914350324 | E155: =D$1*SIN(RADIANS($A155)) -> -5.803263008 | F155: 7.057014442 | G155: =F$1*SIN(RADIANS($A155)) -> -10.46245417
A156: 306 | B156: 1.763355757 | C156: -2.427050983 | D156: 4.114496766 | E156: =D$1*SIN(RADIANS($A156)) -> -5.663118961 | F156: 7.417849884 | G156: =F$1*SIN(RADIANS($A156)) -> -10.20979447
A157: 308 | B157: 1.846984426 | C157: -2.364032261 | D157: 4.309630327 | E157: =D$1*SIN(RADIANS($A157)) -> -5.516075275 | F157: 7.769647819 | G157: =F$1*SIN(RADIANS($A157)) -> -9.944695711
A158: 310 | B158: 1.928362829 | C158: -2.298133329 | D158: 4.499513268 | E158: =D$1*SIN(RADIANS($A158)) -> -5.362311102 | F158: 8.111979634 | G158: =F$1*SIN(RADIANS($A158)) -> -9.667480872
A159: 312 | B159: 2.007391819 | C159: -2.229434476 | D159: 4.683914245 | E159: =D$1*SIN(RADIANS($A159)) -> -5.202013778 | F159: 8.444428252 | G159: =F$1*SIN(RADIANS($A159)) -> -9.378487698
A160: 314 | B160: 2.083975111 | C160: -2.158019401 | D160: 4.862608593 | E160: =D$1*SIN(RADIANS($A160)) -> -5.035378602 | F160: 8.766588635 | G160: =F$1*SIN(RADIANS($A160)) -> -9.07806828
A161: 316 | B161: 2.158019401 | C161: -2.083975111 | D161: 5.035378602 | E161: =D$1*SIN(RADIANS($A161)) -> -4.862608593 | F161: 9.07806828 | G161: =F$1*SIN(RADIANS($A161)) -> -8.766588635
A162: 318 | B162: 2.229434476 | C162: -2.007391819 | D162: 5.202013778 | E162: =D$1*SIN(RADIANS($A162)) -> -4.683914245 | F162: 9.378487698 | G162: =F$1*SIN(RADIANS($A162)) -> -8.444428252
A163: 320 | B163: 2.298133329 | C163: -1.928362829 | D163: 5.362311102 | E163: =D$1*SIN(RADIANS($A163)) -> -4.499513268 | F163: 9.667480872 | G163: =F$1*SIN(RADIANS($A163)) -> -8.111979634
A164: 322 | B164: 2.364032261 | C164: -1.846984426 | D164: 5.516075275 | E164: =D$1*SIN(RADIANS($A164)) -> -4.309630327 | F164: 9.944695711 | G164: =F$1*SIN(RADIANS($A164)) -> -7.769647819
A165: 324 | B165: 2.427050983 | C165: -1.763355757 | D165: 5.663118961 | E165: =D$1*SIN(RADIANS($A165)) -> -4.114496766 | F165: 10.20979447 | G165: =F$1*SIN(RADIANS($A165)) -> -7.417849884
A166: 326 | B166: 2.487112718 | C166: -1.67757871 | D166: 5.803263008 | E166: =D$1*SIN(RADIANS($A166)) -> -3.914350324 | F166: 10.46245417 | G166: =F$1*SIN(RADIANS($A166)) -> -7.057014442
A167: 328 | B167: 2.544144288 | C167: -1.589757793 | D167: 5.936336673 | E167: =D$1*SIN(RADIANS($A167)) -> -3.70943485 | F167: 10.70236697 | G167: =F$1*SIN(RADIANS($A167)) -> -6.687581115
A168: 330 | B168: 2.598076211 | C168: -1.5 | D168: 6.062177826 | E168: =D$1*SIN(RADIANS($A168)) -> -3.5 | F168: 10.9292406 | G168: =F$1*SIN(RADIANS($A168)) -> -6.31
A169: 332 | B169: 2.648842779 | C169: -1.408414688 | D169: 6.18063315 | E169: =D$1*SIN(RADIANS($A169)) -> -3.28630094 | F169: 11.14279862 | G169: =F$1*SIN(RADIANS($A169)) -> -5.924731122
A170: 334 | B170: 2.696382139 | C170: -1.31511344 | D170: 6.291558324 | E170: =D$1*SIN(RADIANS($A170)) -> -3.068598028 | F170: 11.34278086 | G170: =F$1*SIN(RADIANS($A170)) -> -5.532243872
A171: 336 | B171: 2.740636373 | C171: -1.220209929 | D171: 6.394818203 | E171: =D$1*SIN(RADIANS($A171)) -> -2.847156502 | F171: 11.52894368 | G171: =F$1*SIN(RADIANS($A171)) -> -5.133016436
A172: 338 | B172: 2.781551564 | C172: -1.12381978 | D172: 6.490286982 | E172: =D$1*SIN(RADIANS($A172)) -> -2.622246154 | F172: 11.70106024 | G172: =F$1*SIN(RADIANS($A172)) -> -4.727535209
A173: 340 | B173: 2.819077862 | C173: -1.02606043 | D173: 6.577848346 | E173: =D$1*SIN(RADIANS($A173)) -> -2.394141003 | F173: 11.85892087 | G173: =F$1*SIN(RADIANS($A173)) -> -4.316294209
A174: 342 | B174: 2.853169549 | C174: -0.9270509831 | D174: 6.657395614 | E174: =D$1*SIN(RADIANS($A174)) -> -2.163118961 | F174: 12.00233324 | G174: =F$1*SIN(RADIANS($A174)) -> -3.899794469
A175: 344 | B175: 2.883785088 | C175: -0.8269120675 | D175: 6.728831872 | E175: =D$1*SIN(RADIANS($A175)) -> -1.929461491 | F175: 12.1311226 | G175: =F$1*SIN(RADIANS($A175)) -> -3.47854343
A176: 346 | B176: 2.910887179 | C176: -0.7257656868 | D176: 6.792070084 | E176: =D$1*SIN(RADIANS($A176)) -> -1.693453269 | F176: 12.24513207 | G176: =F$1*SIN(RADIANS($A176)) -> -3.053054322
A177: 348 | B177: 2.934442802 | C177: -0.6237350725 | D177: 6.847033205 | E177: =D$1*SIN(RADIANS($A177)) -> -1.455381836 | F177: 12.34422272 | G177: =F$1*SIN(RADIANS($A177)) -> -2.623845538
A178: 350 | B178: 2.954423259 | C178: -0.520944533 | D178: 6.893654271 | E178: =D$1*SIN(RADIANS($A178)) -> -1.215537244 | F178: 12.42827384 | G178: =F$1*SIN(RADIANS($A178)) -> -2.191440002
A179: 352 | B179: 2.970804206 | C179: -0.4175193029 | D179: =D$1*COS(RADIANS($A179)) -> 6.931876481 | E179: =D$1*SIN(RADIANS($A179)) -> -0.9742117067 | F179: 12.49718303 | G179: =F$1*SIN(RADIANS($A179)) -> -1.756364534
A180: 354 | B180: 2.983565686 | C180: -0.3135853898 | D180: 6.961653268 | E180: =D$1*SIN(RADIANS($A180)) -> -0.7316992429 | F180: 12.55086632 | G180: =F$1*SIN(RADIANS($A180)) -> -1.319149206
A181: 356 | B181: 2.992692151 | C181: -0.2092694212 | D181: 6.982948352 | E181: =D$1*SIN(RADIANS($A181)) -> -0.4882953162 | F181: 12.58925831 | G181: =F$1*SIN(RADIANS($A181)) -> -0.8803266987
A182: 358 | B182: 2.998172481 | C182: -0.1046984901 | D182: 6.995735789 | E182: =D$1*SIN(RADIANS($A182)) -> -0.2442964769 | F182: 12.61231224 | G182: =F$1*SIN(RADIANS($A182)) -> -0.4404316484
A183: 360 | B183: 3 | C183: -7.350890729e-16 | D183: 7 | E183: =D$1*SIN(RADIANS($A183)) -> -1.715207837e-15 | F183: 12.62 | G183: =F$1*SIN(RADIANS($A183)) -> -3.0922747e-15
